Cogmind - Beta 12 @@@ ROGUE MODE // 2023.10.07 @ 04:18:49 Player: Luminiferous Result: Self-destructed Performance ------------- Evolutions (4) 2000 Regions Visited (9) 1800 Robots Destroyed (5) 25 Value Destroyed (120) 120 Prototype IDs (1) 20 Alien Tech Used (0) 0 Bonus (200) 200 TOTAL SCORE: 4165 Bonus ------- Pacifist 200 Cogmind --------- Core Integrity 234/850 Matter 239/300 Energy 99/100 System Corruption 1% Temperature Cool (0) Movement Core (50) Location -6/Factory Parts ------- > --- POWER (1) -------- (None) > --- PROPULSION (4) --- (None) > --- UTILITY (8) ------ (None) > --- WEAPON (2) ------- (None) > --- INVENTORY (5) ---- Airjet Advanced Beam Cannon Advanced Beam Cannon Advanced Beam Cannon Peak State ------------ > --- POWER ------------ (None) > --- PROPULSION ------- Gravmag System Flight Unit Cesium-ion Thruster Xenon Bombardment Thruster > --- UTILITY ---------- System Shield > --- WEAPON ----------- Great Maul > --- INVENTORY -------- Gravmag System Gravmag System Advanced Beam Cannon Advanced Beam Cannon Advanced Beam Cannon [Rating: 19] Favorites ----------- Power Improved Ion Engine Engine Improved Ion Engine Propulsion Flight Unit Wheel Wheel Hover Unit Gravmag System Flight Unit Flight Unit Utility System Shield Hackware System Shield Weapon Advanced Beam Cannon Energy Cannon Advanced Beam Cannon Impact Weapon Great Maul Build | -11 -10 -9 -9 -8 -7 -7 -7 -7 -6 ------- Run | Jun Mat Mat Min Mat Fac Was Fac Sto Fac Slots Evolved 8 | . . 2 . 2 2 . . . 2 Power . | . . . . . . . . . . Propulsion 2 | . . . . 1 1 . . . . Utility 6 | . . 2 . 1 1 . . . 2 Weapon . | . . . . . . . . . . Parts Attached 15 | 1 . 5 . 1 4 2 1 . 1 Power 1 | . . 1 . . . . . . . Engine 1 | . . 1 . . . . . . . Core . | . . . . . . . . . . Reactor . | . . . . . . . . . . Propulsion 10 | 1 . 2 . 1 2 2 1 . 1 Treads . | . . . . . . . . . . Leg . | . . . . . . . . . . Wheel 1 | 1 . . . . . . . . . Hover 4 | . . . . 1 . 2 1 . . Flight 5 | . . 2 . . 2 . . . 1 Utility 1 | . . . . . 1 . . . . Device . | . . . . . . . . . . Storage . | . . . . . . . . . . Processor . | . . . . . . . . . . Hackware 1 | . . . . . 1 . . . . Protection . | . . . . . . . . . . Artifact . | . . . . . . . . . . Weapon 3 | . . 2 . . 1 . . . . Energy Gun . | . . . . . . . . . . Energy Cannon 2 | . . 2 . . . . . . . Ballistic Gun . | . . . . . . . . . . Ballistic Cannon . | . . . . . . . . . . Launcher . | . . . . . . . . . . Special Weapon . | . . . . . . . . . . Impact Weapon 1 | . . . . . 1 . . . . Slashing Weapon . | . . . . . . . . . . Piercing Weapon . | . . . . . . . . . . Special Melee Weapon . | . . . . . . . . . . Unidentified Prototypes 1 | . . 1 . . . . . . . Parts Lost 9 | . . 1 . . 2 3 . 1 2 Power 1 | . . 1 . . . . . . . Propulsion 7 | . . . . . 2 2 . 1 2 Utility . | . . . . . . . . . . Weapon 1 | . . . . . . 1 . . . Highest Loss Streak 4 | . . 1 . . 1 4 . 1 1 To Critical Strikes . | . . . . . . . . . . Average Slot Usage (%) 19 | . . 25 22 25 34 19 15 13 2 Engine 1 | . . 6 . . . . . . . Hover 4 | . . . . 7 7 3 15 13 1 Flight 7 | . . 8 22 18 18 7 . . 1 Energy Cannon 2 | . . 10 . . . . . . . Naked Turns 262 | . 50 50 . . . 14 . . 148 Heaviest Build 15 | . . 15 . . 4 4 . . . Greatest Support 26 | 3 3 8 8 9 15 18 26 18 9 Greatest Overweight (x) 4 | . . 4 . . . . . . . Average Overweight (x) . | . . . . . . . . . . Largest Inventory Capacity 5 | 5 5 5 5 5 5 5 5 5 5 Average Capacity 5 | 5 5 5 5 5 5 5 5 5 5 Most Carried 5 | 1 . 3 3 5 5 5 4 4 5 Average Carried 3 | . . 1 3 4 5 4 3 4 4 Final Capacity 5 | 5 5 5 5 5 5 5 5 5 5 Final Carried 5 | . . 3 3 5 5 3 4 4 4 Class Distribution -------------------- 96% | Mutant 3% | Sprinter Dominant Class ---------------- Mutant | -10/Materials Mutant | -9/Materials Mutant | -9/Mines Mutant | -8/Materials Mutant | -7/Factory Mutant | -7/Waste Mutant | -7/Factory Mutant | -7/Storage Mutant | -6/Factory Resources | -11 -10 -9 -9 -8 -7 -7 -7 -7 -6 ----------- Run | Jun Mat Mat Min Mat Fac Was Fac Sto Fac Matter Collected 252 | . . 252 . . . . . . . Remotely . | . . . . . . . . . . Salvage Created 165 | . . 165 . . . . . . . Parts 13 | . . 13 . . . . . . . Haulers Intercepted . | . . . . . . . . . . Recyclers Shooed . | . . . . . . . . . . Parts Field Recycled . | . . . . . . . . . . Retrieved Matter . | . . . . . . . . . . Parts Self-Destructed . | . . . . . . . . . . Prevented . | . . . . . . . . . . Kills | -11 -10 -9 -9 -8 -7 -7 -7 -7 -6 ------- Run | Jun Mat Mat Min Mat Fac Was Fac Sto Fac Combat Hostiles Destroyed 5 | . . 5 . . . . . . . Cannons 5 | . . 5 . . . . . . . Classes Destroyed 2 | . . 2 . . . . . . . Swarmer 3 | . . 3 . . . . . . . Sentry 2 | . . 2 . . . . . . . Best Kill Streak 3 | . . 3 . . . . . . . Combat Bots Only 3 | . . 3 . . . . . . . Max Kills in Single Turn 1 | . . 1 . . . . . . . Gunslinging . | . . . . . . . . . . Exploded . | . . . . . . . . . . Melee . | . . . . . . . . . . Uniques/NPCs Destroyed . | . . . . . . . . . . Combat | -11 -10 -9 -9 -8 -7 -7 -7 -7 -6 -------- Run | Jun Mat Mat Min Mat Fac Was Fac Sto Fac Damage Taken 1624 | . 143 377 . . 90 90 46 209 669 Core 1167 | . 143 136 . . 51 54 33 134 616 Absorbed by Shields 24 | . . . . . . . . . 24 Core Remaining (%) 73 | 100 42 . 66 100 . . . 61 . Volleys Fired 9 | . . 9 . . . . . . . Largest 2 | . . 2 . . . . . . . Hottest 136 | . . 136 . . . . . . . Shots Fired 18 | . . 18 . . . . . . . Gun . | . . . . . . . . . . Cannon 18 | . . 18 . . . . . . . Launcher . | . . . . . . . . . . Special . | . . . . . . . . . . Kinetic . | . . . . . . . . . . Thermal 18 | . . 18 . . . . . . . Explosive . | . . . . . . . . . . Electromagnetic . | . . . . . . . . . . Robot Hit Streak 3 | . . 3 . . . . . . . Robot Miss Streak 4 | . . 4 . . . . . . . Penetration Max . | . . . . . . . . . . Secondary Targets . | . . . . . . . . . . Shots Hit Robots 7 | . . 7 . . . . . . . Core Hits 5 | . . 5 . . . . . . . Critical Kills . | . . . . . . . . . . Critical Parts Destroyed . | . . . . . . . . . . Critical Strikes . | . . . . . . . . . . Melee Attacks 13 | . . . . . 13 . . . . Impact 13 | . . . . . 13 . . . . Slashing . | . . . . . . . . . . Piercing . | . . . . . . . . . . Sneak Attacks . | . . . . . . . . . . Combat Hostiles . | . . . . . . . . . . Follow-up Attacks . | . . . . . . . . . . Damage Inflicted 169 | . . 164 . . . . . . 5 Guns . | . . . . . . . . . . Cannons 162 | . . 162 . . . . . . . Explosions . | . . . . . . . . . . Melee . | . . . . . . . . . . Ramming 7 | . . 2 . . . . . . 5 Kinetic . | . . . . . . . . . . Thermal 162 | . . 162 . . . . . . . Explosive . | . . . . . . . . . . Electromagnetic . | . . . . . . . . . . Impact . | . . . . . . . . . . Slashing . | . . . . . . . . . . Piercing . | . . . . . . . . . . Highest Corruption 2 | . . . . . 2 2 2 2 1 Average Corruption 1 | . . . . . 2 2 2 2 1 Corruption Purged . | . . . . . . . . . . Corruption Blocked . | . . . . . . . . . . Effects 4 | . . . . . . . 2 1 1 Message Errors 1 | . . . . . . . 1 . . Matter Fused 1 | . . . . . . . . . 1 Energy Discharges 1 | . . . . . . . . 1 . Data Loss (minor) 1 | . . . . . . . 1 . . Overload Shots . | . . . . . . . . . . Overflow Damage . | . . . . . . . . . . Projectiles . | . . . . . . . . . . Explosions . | . . . . . . . . . . Melee . | . . . . . . . . . . Knockbacks . | . . . . . . . . . . Impact . | . . . . . . . . . . Kinetic . | . . . . . . . . . . Secondary . | . . . . . . . . . . Self-Inflicted Damage 3 | . . 1 . . . . . . 2 Shots . | . . . . . . . . . . Rammed 2 | . . 1 . . . . . . 1 Targets Rammed 2 | . . 1 . . . . . . 1 Kicked . | . . . . . . . . . . Crushed . | . . . . . . . . . . Highest Temperature 390 | . . 390 . . . . . . . Average Temperature 160 | . . 160 . . . . . . . Received Heat Transfer 378 | . 78 72 . . 18 . 27 48 135 Effects 2 | . . 2 . . . . . . . Shutdowns 1 | . . 1 . . . . . . . Energy Bleed 1 | . . 1 . . . . . . . Siege Activations . | . . . . . . . . . . Robots Corrupted . | . . . . . . . . . . Combat Hostiles . | . . . . . . . . . . Parts Fried . | . . . . . . . . . . Impact Corruptions . | . . . . . . . . . . Robots Melted . | . . . . . . . . . . Combat Hostiles . | . . . . . . . . . . Parts Melted . | . . . . . . . . . . Heat Transferred 296 | . . 296 . . . . . . . Parts Sabotaged . | . . . . . . . . . . Parts Stolen . | . . . . . . . . . . Parts Stripped . | . . . . . . . . . . Power Chain Reactions . | . . . . . . . . . . Missiles Intercepted . | . . . . . . . . . . Alert | -11 -10 -9 -9 -8 -7 -7 -7 -7 -6 ------- Run | Jun Mat Mat Min Mat Fac Was Fac Sto Fac Peak Influence 327 | . . 316 123 62 327 129 284 253 284 Initial 128 | . . . 123 47 28 114 69 128 114 Average 136 | . . 134 123 56 130 110 123 193 186 Maximum Alert Level 1 | . . 1 . . 1 . 1 1 1 Low Security (%) 74 | 100 100 80 100 100 80 100 74 55 51 Level 1 25 | . . 19 . . 19 . 25 44 48 Level 2 . | . . . . . . . . . . Level 3 . | . . . . . . . . . . Level 4 . | . . . . . . . . . . Level 5 . | . . . . . . . . . . High Security . | . . . . . . . . . . Max Security . | . . . . . . . . . . Squads Dispatched 12 | . 1 3 . . 4 . 1 1 2 Investigation 7 | . 1 1 . . 4 . 1 . . Extermination . | . . . . . . . . . . Reinforcement 5 | . . 2 . . . . . 1 2 Assault . | . . . . . . . . . . Garrison . | . . . . . . . . . . Intercept . | . . . . . . . . . . Searches Triggered . | . . . . . . . . . . Construction Impeded . | . . . . . . . . . . Haulers Reinforced . | . . . . . . . . . . Active Scanning Responses . | . . . . . . . . . . Cargo Convoy Interrupts . | . . . . . . . . . . Stealth | -11 -10 -9 -9 -8 -7 -7 -7 -7 -6 --------- Run | Jun Mat Mat Min Mat Fac Was Fac Sto Fac Distress Signals 4 | . . . . . 1 . . 2 1 Communications Jammed . | . . . . . . . . . . Distress Signals . | . . . . . . . . . . Times Spotted 83 | . 5 20 3 2 7 6 5 11 24 Peak Tracking Total 11 | . 5 7 3 2 3 6 5 11 8 Tactical Retreats 9 | . . 2 . . 2 . . 1 4 Traps | -11 -10 -9 -9 -8 -7 -7 -7 -7 -6 ------- Run | Jun Mat Mat Min Mat Fac Was Fac Sto Fac Traps Triggered 2 | . . . . . 1 . . . 1 Indirectly . | . . . . . . . . . . Trap Hack Attempts . | . . . . . . . . . . Triggered . | . . . . . . . . . . Disarmed . | . . . . . . . . . . Reprogrammed . | . . . . . . . . . . Reused . | . . . . . . . . . . Traps Extracted . | . . . . . . . . . . Installed . | . . . . . . . . . . Triggered . | . . . . . . . . . . Machines | -11 -10 -9 -9 -8 -7 -7 -7 -7 -6 ---------- Run | Jun Mat Mat Min Mat Fac Was Fac Sto Fac Machines Disabled . | . . . . . . . . . . Max in Single Turn . | . . . . . . . . . . Garrison Access 1 | . . . . . . . 1 . . Machines Repaired . | . . . . . . . . . . Machines Sabotaged . | . . . . . . . . . . Overloaded Fab Kills . | . . . . . . . . . . Hacking | -11 -10 -9 -9 -8 -7 -7 -7 -7 -6 --------- Run | Jun Mat Mat Min Mat Fac Was Fac Sto Fac Machines Accessed 9 | . 1 1 . . 4 . 2 . 1 Terminals 5 | . 1 1 . . 1 . 1 . 1 Fabricators 2 | . . . . . 2 . . . . Repair Stations . | . . . . . . . . . . Recycling Units . | . . . . . . . . . . Scanalyzers . | . . . . . . . . . . Garrison Access 2 | . . . . . 1 . 1 . . Total Hacks 25 | . 3 2 . . 17 . 2 . 1 Successful 9 | . . . . . 8 . 1 . . Failed 16 | . 3 2 . . 9 . 1 . 1 Catastrophic 3 | . . 1 . . . . 1 . 1 Database Lockouts . | . . . . . . . . . . Manual 26 | . 3 2 . . 18 . 2 . 1 Terminals 8 | . 3 2 . . 1 . 1 . 1 Fabricators 8 | . . . . . 8 . . . . Repair Stations . | . . . . . . . . . . Recycling Units . | . . . . . . . . . . Scanalyzers . | . . . . . . . . . . Garrison Access 9 | . . . . . 8 . 1 . . Terminal Hacks . | . . . . . . . . . . Fabricator Hacks . | . . . . . . . . . . Repair Station Hacks . | . . . . . . . . . . Recycling Unit Hacks . | . . . . . . . . . . Scanalyzer . | . . . . . . . . . . Garrison Access Hacks . | . . . . . . . . . . Unauthorized Hacks 9 | . . . . . 8 . 1 . . Terminals . | . . . . . . . . . . Fabricators 3 | . . . . . 3 . . . . Fabnet 1 | . . . . . 1 . . . . Overload 1 | . . . . . 1 . . . . Download 1 | . . . . . 1 . . . . Repair Stations . | . . . . . . . . . . Recycling Units . | . . . . . . . . . . Scanalyzers . | . . . . . . . . . . Garrison Access 6 | . . . . . 5 . 1 . . Broadcast 1 | . . . . . 1 . . . . Restock 1 | . . . . . 1 . . . . Reprogram 1 | . . . . . 1 . . . . Watchers 1 | . . . . . 1 . . . . Jam 1 | . . . . . . . 1 . . Eject 1 | . . . . . 1 . . . . Data Cores Recovered . | . . . . . . . . . . Used . | . . . . . . . . . . Hacking Detections 8 | . 1 1 . . 4 . 1 . 1 Full Trace Events 2 | . 1 1 . . . . . . . Feedback Events . | . . . . . . . . . . Feedback Blocked . | . . . . . . . . . . Robot Schematics Acquired . | . . . . . . . . . . Robots Built . | . . . . . . . . . . Authchips . | . . . . . . . . . . Time . | . . . . . . . . . . Total Robot Build Rating . | . . . . . . . . . . Part Schematics Acquired . | . . . . . . . . . . Parts Built . | . . . . . . . . . . Authchips . | . . . . . . . . . . Time . | . . . . . . . . . . Total Part Build Rating . | . . . . . . . . . . Parts Repaired . | . . . . . . . . . . Time . | . . . . . . . . . . Parts Recycled . | . . . . . . . . . . Recycled Matter . | . . . . . . . . . . Retrieved Matter . | . . . . . . . . . . Retrieved Components . | . . . . . . . . . . Parts Scanalyzed . | . . . . . . . . . . Part Schematics Acquired . | . . . . . . . . . . Parts Damaged . | . . . . . . . . . . Bothacking | -11 -10 -9 -9 -8 -7 -7 -7 -7 -6 ------------ Run | Jun Mat Mat Min Mat Fac Was Fac Sto Fac Used RIF Installer . | . . . . . . . . . . Robots Hacked . | . . . . . . . . . . Non-combat . | . . . . . . . . . . Combat . | . . . . . . . . . . Robot Hacks Applied . | . . . . . . . . . . Relay Couplers Released 4 | . . . . . 4 . . . . Ejected 4 | . . . . . 4 . . . . Fabnet Peak Effective % . | . . . . . . . . . . Robots Rewired . | . . . . . . . . . . Allies Hacked . | . . . . . . . . . . Hacks Repelled . | . . . . . . . . . . Allies | -11 -10 -9 -9 -8 -7 -7 -7 -7 -6 -------- Run | Jun Mat Mat Min Mat Fac Was Fac Sto Fac Total Allies 3 | . . . . . 3 . . . . Largest Group 3 | . . . . . 3 . . . . Highest-Rated Group 48 | . . . . . 48 . . . . Highest-Rated Ally 16 | . . . . . 16 . . . . Total Orders . | . . . . . . . . . . Ally Attacks 10 | . . . . . 10 . . . . Total Damage 146 | . . . . . 146 . . . . Kills 1 | . . . . . 1 . . . . Allies Corrupted . | . . . . . . . . . . Allies Melted . | . . . . . . . . . . Intel | -11 -10 -9 -9 -8 -7 -7 -7 -7 -6 ------- Run | Jun Mat Mat Min Mat Fac Was Fac Sto Fac Robot Analysis Total . | . . . . . . . . . . Derelict Logs Recovered . | . . . . . . . . . . Drone Launches . | . . . . . . . . . . Drone Recoveries . | . . . . . . . . . . Exploration | -11 -10 -9 -9 -8 -7 -7 -7 -7 -6 ------------- Run | Jun Mat Mat Min Mat Fac Was Fac Sto Fac Turns Passed 1192 | 13 50 347 14 55 231 46 85 79 272 Spaces Moved 2213 | 20 100 517 37 132 520 106 148 139 494 Core 571 | 20 100 161 . . . 41 . . 249 Treads . | . . . . . . . . . . Legs . | . . . . . . . . . . Wheels . | . . . . . . . . . . Hover 423 | . . . . 10 . 6 148 139 120 Flight 1219 | . . 356 37 122 520 59 . . 125 Fastest Speed 32 | 50 50 37 37 37 32 34 52 56 40 Average Speed 48 | 50 50 59 37 38 35 41 55 56 49 Slowest Speed 250 | 50 50 250 37 60 37 56 56 60 60 Overloaded Moves . | . . . . . . . . . . Propulsion Burnouts . | . . . . . . . . . . Robots Hopped 16 | . . 5 2 2 5 . . . 2 Cave-ins Triggered . | . . . . . . . . . . Exploration Rate (%) 25 | 3 24 51 9 15 20 69 6 39 22 Regions Visited 9 Branch Regions 2 Pre-discovered Areas . | . . . . . . . . . . Known Exits Taken . | . . . . . . . . . . Unknown Exits Taken 7 | 1 1 1 1 1 . . 1 1 . Scrap Searched . | . . . . . . . . . . Spaces Dug 13 | . . . . . 13 . . . . Terrain Destroyed 13 | . . . . . 13 . . . . Melee 13 | . . . . . 13 . . . . Projectile . | . . . . . . . . . . AOE . | . . . . . . . . . . Terrain Rammed . | . . . . . . . . . . Walls Destroyed . | . . . . . . . . . . Machines Disabled . | . . . . . . . . . . Actions | -11 -10 -9 -9 -8 -7 -7 -7 -7 -6 --------- Run | Jun Mat Mat Min Mat Fac Was Fac Sto Fac Total 2265 | 22 99 534 34 132 532 107 150 138 517 Wait 15 | . . . . . . . . . 15 Move 2173 | 19 99 506 32 127 510 105 147 138 490 Hop 16 | . . 5 2 2 5 . . . 2 Pick Up 11 | 1 . 6 . 2 . . 1 . 1 Fast Attach 5 | . . . . 1 4 . . . . Attach 10 | 1 . 5 . . . 2 1 . 1 Detach 3 | . . 2 . . . . 1 . . Swap . | . . . . . . . . . . Drop 1 | 1 . . . . . . . . . Fire 9 | . . 9 . . . . . . . Melee 13 | . . . . . 13 . . . . Ram 2 | . . 1 . . . . . . 1 Kick . | . . . . . . . . . . Crush . | . . . . . . . . . . Escape Stasis 7 | . . . . . . . . . 7 Rewire . | . . . . . . . . . . Trap . | . . . . . . . . . . Miscellaneous . | . . . . . . . . . . Route ------- -11/Junkyard -10/Materials -9/Materials -9/Mines -8/Materials -7/Factory -7/Waste -7/Factory -7/Storage -6/Factory History --------- Turn | Location | Event 7 | -11/Junkyard | Discovered new exit (range 15) 14 | -11/Junkyard | Entered Materials 57 | -10/Materials | Discovered new exit (range 13) 64 | -10/Materials | Core integrity fell below 50% 64 | -10/Materials | Entered another Materials area 64 | -9/Materials | Evolved 2 slots: Utility x2 301 | -9/Materials | Build established: Mutant 408 | -9/Materials | Discovered new exit (range 9) 411 | -9/Materials | Entered Mines 418 | -9/Mines | Discovered new exit (range 5) 425 | -9/Mines | Entered Materials 425 | -8/Materials | Evolved 2 slots: Propulsion x1, Utility x1 478 | -8/Materials | Discovered new exit (range 3) 480 | -8/Materials | Entered Factory 480 | -7/Factory | Evolved 2 slots: Propulsion x1, Utility x1 711 | -7/Factory | Sucked down chute 711 | -7/Factory | Entered Waste 718 | -7/Waste | Spotted C-40 Crusher 718 | -7/Waste | Spotted C-40 Crusher 722 | -7/Waste | Spotted C-40 Crusher 726 | -7/Waste | Spotted C-40 Crusher 731 | -7/Waste | Crushed by Compactor (1 part destroyed, 1 dropped) 734 | -7/Waste | Spotted C-40 Crusher 734 | -7/Waste | Spotted C-40 Crusher 738 | -7/Waste | Crushed by Compactor (1 part destroyed, 1 dropped) 744 | -7/Waste | Discovered new exit (range 13) 757 | -7/Waste | Entered Factory 769 | -7/Factory | Lost 4 parts (3n1w) 839 | -7/Factory | Discovered new exit (range 6) 842 | -7/Factory | Entered Storage 914 | -7/Storage | Discovered new exit (range 9) 921 | -7/Storage | Entered Factory 921 | -6/Factory | Evolved 2 slots: Utility x2 976 | -6/Factory | Spotted B-75 Beast 1024 | -6/Factory | Core integrity fell below 50% 1193 | -6/Factory | Self-destructed Last Messages --------------- 01114_ Connecting with Terminal... 01114_ Current location identified: Factory 01135_ Acquired Nuclear Pulse Thruster. 01141_ Drone sends a signal. 01147_ O-16 Technician: "IFF HANDSHAKE FAILED. SECURING TERMINAL." 01151_ O-16 Technician uses terminal to summon reinforcements. 01151_ ALERT: Hostiles spotted, dispatching reinforcements to Terminal F002. 01151_ O-16 Technician locks terminal. 01159_ K-01 Serf cleans the Neutrino Reactor. 01160_ K-01 Serf cleans the Fusion Modulator. 01163_ ALERT: Security rotation in progress. 01165_ U-05 Engineer destroyed. 01165_ R-10 Processor collects Welding Torch. 01168_ K-01 Serf cleans the Fabricator. 01169_ K-01 Serf cleans the Manufacturing Mainframe. 01171_ K-01 Serf collects debris. 01177_ System corrupted: Matter fused (-6). 01177_ K-01 Serf collects debris. 01187_ Nuclear Pulse Thruster destroyed. Map ----- +----------------------------------------------------+ | ?????????????????????????????????????????????????? | | ?????????????????????????????????????????????????? | | ?????????????????????????????????????????????????? | | ?????????????????????????????????????????????????? | | ?????????????????????????????????????????????????? | | ?????????????????????????????????????????????????? | | ?????????????????????????????????????????????????? | | ?????????????????????????????????????????????????? | | ?????????????????????????????????????????????????? | | ?????????????????????????????????????????????????? | | ?????????????????????????????????????????????????? | | ????????????????????##############???????######### | | ????????????????????# #???????# | | ????????????????????# #???????# | | ????????????????????# #???????# | | ????????????????????# ! #???????# | | ????????????????????# #???????# [!! | | ????????????????????# #???????# [!! | | ????????????????????# #???????# !!! | | ????????????????????# #???????# | | ????????????????????# [ #???????# | | ????????????????????# #???????# | | ????????????????????# #???????# | | ????????????????????# #???????# | | ????????????????????#####/#+####################+# | | ????????????????????????#@ # = ## | | ????????????????????????# # ## | | ????????????????????????# b # """" + | | ????????????????????????# gg # """" ## | | ????????????????????????# g # """" ## | | ???????????##################### # """" ## "" | | ???????????#/ #?# # ## "F | | ???????????# """" """" """" #?# p # ## "^ | | ???????????# """" """" """" #?# # / ## "" | | ???????????# """" """" """" #?# h "" ## "" | | ???????????# """" """" """" #?# # "Y ## | | ???????????# #?# # "" = ## | | ???????????# ! """T""" #?# # ## % | | ???????????#########+#########?# ###+##### | | ????############## ######### | | ?????! """ # # # | | ????? "Y" # # ! # T ^ | | ????? """ " " + # # | | ???????""""" # # # """ """ """ | | ??????""""" # # # """ """ """ # | | ?##########+#### # # """ """ """ # | | # #??# #??# # # # | | # #?## #### # # # | | / #?# # # # | | ???# #?# + # ###########+# | +----------------------------------------------------+ Best States ------------- Heat Dissipation 37 Energy Generation 12 Energy Capacity 265 Matter Stores 300 Matter Capacity 300 Sight Range 16 Terrain Scan Density 10 Evasion (%) 63 Defensive Hacking 10 Item Schematics ----------------- None Robot Schematics ------------------ None Fabricated ------------ Nothing Alien Tech Used ----------------- None Achievements -------------- Party Time Challenges ------------ None Game ------ Seed TransdimensionalRemoteMount Manual? 0 Play Time 00:20:14 Cumulative 7.4 hours Start 2023.10.07 @ 03:56:23 End 2023.10.07 @ 04:18:49 Sessions 1 Manual Loads 0 Difficulty Rogue Special Mode None Game No. 25 Rogue 25 Adventurer 0 Explorer 0 Win Type - Total 0 Types 0/0/0/0/0/0/0/0/0 Lore% 6 Gallery% 16 Achievement% 20 Wizard Run 0 Options --------- ASCII 0 Keyboard 0 Movement Mouse Keybinds 1 Fullscreen 1 Font 18/Smallcaps Map View 76x50 Tactical HUD 1 Map Filters SHIFT_HUE(270)|BRIGHTNESS(75) Filters SHIFT_HUE(90)|BRIGHTNESS(125) Steam 1 RUN: 19e69d73-dc3c-43ea-8d3d-4bc04d46f85f